fUST/lending_fUST_20240830
["ID","MTS","AMOUNT","RATE_DAILY","PERIOD"]
[336556123,1724952662003,-6827.52,0.00023287,5]
[336556125,1724952662013,-500.0,0.00023287,5]
[336556127,1724952662023,-1197.44,0.00023287,5]
[336556129,1724952662033,-2427.73,0.00023287,5]
[336556131,1724952662042,-1397.11,0.00023287,5]
[336556133,1724952662052,-1850.92,0.00023287,5]
[336556136,1724952662062,-926.01,0.00023287,5]
[336556137,1724952662071,-1150.01,0.00023287,5]
[336556140,1724952662082,-277.45589,0.00023287,7]
[336556142,1724952662091,-277.45589,0.00023287,7]
[336556144,1724952662101,-3752.69,0.00023287,5]
[336556146,1724952662114,-1226.84,0.00023287,5]
[336556148,1724952662124,-1379.94,0.00023287,5]
[336556150,1724952662133,-1041.47,0.00023287,5]
[336556152,1724952662143,-941.03,0.00023287,5]
[336556154,1724952662152,-1814.12,0.00023287,5]
[336556156,1724952662161,-1236.89,0.00023287,5]
[336556158,1724952662170,-974.98,0.00023287,5]
[336556160,1724952662180,-500.0,0.00023287,5]
[336556162,1724952662189,-500.0,0.00023287,5]
[336556164,1724952662198,-524.17,0.00023287,5]
[336556166,1724952662207,-507.19,0.00023287,5]
[336556168,1724952662217,-203.36115618,0.00023287,5]
[336556170,1724952662226,-1015.18,0.00023287,5]
[336556172,1724952662236,-2068.23,0.00023287,5]
[336556174,1724952662245,-17466.73,0.00023287,5]
[336556176,1724952662255,-500.0,0.00023287,5]
[336556178,1724952662264,-598.75,0.00023287,5]
[336556180,1724952662275,-990.14,0.00023287,5]
[336556182,1724952662284,-500.0,0.00023287,5]
[336556184,1724952662293,-500.0,0.00023287,5]
[336556186,1724952662304,-3068.97,0.000234,14]
[336556188,1724952662314,-155.0,0.0002343,9]
[336556190,1724952662325,-151.0,0.00023502,2]
[336556192,1724952662335,-500.0,0.00023542,2]
[336556194,1724952662344,-691.49,0.00023561,5]
[336556196,1724952662354,-1084.28,0.00023561,5]
[336556198,1724952662363,-524.2,0.00023561,5]
[336556200,1724952662372,-257.138475,0.00023561,7]
[336556202,1724952662382,-257.138475,0.00023561,7]
[336556204,1724952662391,-151.0,0.00023561,7]
[336556206,1724952662400,-157.13263399,0.00023561,5]
[336556208,1724952662410,-254.471939,0.00023561,7]
[336556210,1724952662420,-6827.52,0.00023561,5]
[336556212,1724952662429,-500.0,0.00023561,5]
[336556214,1724952662439,-1197.44,0.00023561,5]
[336556216,1724952662449,-2427.73,0.00023561,5]
[336556218,1724952662460,-1397.11,0.00023561,5]
[336556220,1724952662469,-1850.92,0.00023561,5]
[336556222,1724952662479,-926.01,0.00023561,5]
[336556224,1724952662488,-1150.01,0.00023561,5]
[336556226,1724952662498,-3752.69,0.00023561,5]
[336556228,1724952662508,-1226.84,0.00023561,5]
[336556230,1724952662518,-1379.94,0.00023561,5]
[336556232,1724952662527,-151.0,0.00023561,7]
[336556234,1724952662537,-1041.47,0.00023561,5]
[336556236,1724952662546,-941.03,0.00023561,5]
[336556238,1724952662556,-1814.12,0.00023561,5]
[336556240,1724952662566,-1236.89,0.00023561,5]
[336556242,1724952662577,-974.98,0.00023561,5]
[336556244,1724952662586,-500.0,0.00023561,5]
[336556246,1724952662595,-500.0,0.00023561,5]
[336556248,1724952662605,-328.067773,0.00023561,7]
[336556249,1724952662615,-524.17,0.00023561,5]
[336556250,1724952662624,-328.067773,0.00023561,7]
[336556251,1724952662634,-507.19,0.00023561,5]
[336556252,1724952662644,-1015.18,0.00023561,5]
[336556253,1724952662653,-2068.23,0.00023561,5]
[336556254,1724952662663,-17466.73,0.00023561,5]
[336556255,1724952662672,-500.0,0.00023561,5]
[336556256,1724952662682,-598.75,0.00023561,5]
[336556257,1724952662691,-990.14,0.00023561,5]
[336556258,1724952662701,-500.0,0.00023561,5]
[336556260,1724952662710,-500.0,0.00023561,5]
[336556262,1724952662720,-2500.0,0.00023589,2]
[336556264,1724952662730,-1434.43885496,0.000238,2]
[336556266,1724952662739,-1000.0,0.000238,30]
[336556268,1724952662748,-4285.18,0.000238,14]
[336556270,1724952662758,-500.0,0.00023816,2]
[336556272,1724952662767,-691.49,0.00023835,5]
[336556274,1724952662776,-1084.28,0.00023835,5]
[336556276,1724952662785,-524.2,0.00023835,5]
[336556278,1724952662795,-6827.52,0.00023835,5]
[336556280,1724952662803,-500.0,0.00023835,5]
[336556282,1724952662813,-1197.44,0.00023835,5]
[336556284,1724952662825,-2427.73,0.00023835,5]
[336556286,1724952662834,-1397.11,0.00023835,5]
[336556288,1724952662843,-1850.92,0.00023835,5]
[336556290,1724952662852,-62.32745217,0.00023835,5]
[336556303,1724952662973,-863.68254783,0.00023835,5]
[336556305,1724952662982,-1150.01,0.00023835,5]
[336556307,1724952662992,-1589.48790217,0.00023835,5]
[336556309,1724952663004,-1376.7263852,0.00023835,5]
[336556323,1724952663123,-500.0,0.00019178,2]
[336556325,1724952663133,-246.011452,0.00019452,2]
[336556327,1724952663143,-555.43412782,0.00019452,2]
[336556329,1724952663153,-246.011452,0.00019726,2]
[336556331,1724952663162,-246.011452,0.0002,2]
[336556333,1724952663172,-246.011452,0.00020273,2]
[336556335,1724952663182,-246.011452,0.00020547,2]
[336556337,1724952663193,-246.011452,0.00021095,2]
[336556339,1724952663203,-2201.12,0.00022465,5]
[336556341,1724952663212,-246.011452,0.00022739,7]
[336556343,1724952663222,-511.78981653,0.00022739,5]
[336556363,1724952663406,-500.0,0.00019178,2]
[336556365,1724952663417,-102.11,0.00019452,2]
[336576377,1724952982069,250.921499,0.00014247,2]
[336576379,1724953062682,-0.45915962,0.00025,120]
[336576382,1724953637464,-300.0,0.00017409,2]
[336576383,1724953637487,-3099.51225034,0.0001741,2]
[336576384,1724953644100,-1782.90210213,0.0001741,2]
[336576401,1724953832202,-300.0,0.00017409,2]
[336576402,1724953832216,-196.17121722,0.0001741,2]
[336576665,1724953838438,-19821.41443031,0.0001741,2]
[336576666,1724953838448,-5341.07721763,0.00017542,2]
[336576667,1724953838458,-250.0,0.00017926,2]
[336576668,1724953838468,-250.0,0.00017976,2]
[336576669,1724953838478,-250.0,0.00018025,2]
[336576670,1724953838488,-250.0,0.00018074,2]
[336576671,1724953838496,-250.0,0.00018123,2]
[336576672,1724953838505,-206.13698956,0.00018158,2]
[336576673,1724953838515,-250.0,0.00018172,2]
[336576674,1724953838524,-250.0,0.00018222,2]
[336576675,1724953838534,-250.0,0.00018271,2]
[336576676,1724953838544,-250.0,0.0001832,2]
[336576677,1724953838554,-250.0,0.00018369,2]
[336576678,1724953838563,-250.0,0.00018418,2]
[336576679,1724953838572,-250.0,0.00018467,2]
[336576680,1724953838582,-250.0,0.00018517,2]
[336576681,1724953838593,-250.0,0.00018566,2]
[336576682,1724953838603,-1046.82620564,0.00018595,2]
[336576684,1724953838612,-250.0,0.00018615,2]
[336576685,1724953838621,-250.0,0.00018664,2]
[336576686,1724953838630,-250.0,0.00018713,2]
[336576687,1724953838640,-250.0,0.00018762,2]
[336576688,1724953838649,-250.0,0.00018812,2]
[336576689,1724953838659,-1515.39497851,0.00018812,2]
[336576690,1724953838668,-250.0,0.00018861,2]
[336576691,1724953838678,-153.0,0.00018904,2]
[336576692,1724953838688,-173.605557,0.00018912,2]
[336576693,1724953838698,-172.370213,0.00018912,2]
[336576694,1724953838708,-173.605556,0.00018912,2]
[336576695,1724953838718,-172.370212,0.00018912,2]
[336576696,1724953838729,-173.605556,0.00018912,2]
[336576697,1724953838738,-172.370212,0.00018912,2]
[336576698,1724953838748,-41063.68411612,0.00019,2]
[336576699,1724953838758,-1340.06078169,0.00019073,2]
[336576700,1724953838768,-1340.06078166,0.00019074,2]
[336576701,1724953838777,-1340.06078166,0.00019076,2]
[336576702,1724953838787,-1340.06078166,0.00019077,2]
[336576703,1724953838798,-1340.06078166,0.00019078,2]
[336576704,1724953838815,-173.605557,0.00019148,2]
[336576705,1724953838825,-172.370213,0.00019148,2]
[336576706,1724953838835,-173.605556,0.00019148,2]
[336576707,1724953838844,-172.370212,0.00019148,2]
[336576708,1724953838853,-173.605556,0.00019148,2]
[336576709,1724953838863,-172.370212,0.00019148,2]
[336576710,1724953838873,-420.0,0.00019149,2]
[336576711,1724953838882,-1000.0,0.00019167,2]
[336576712,1724953838891,-1000.0,0.00019167,2]
[336576713,1724953838901,-269.74863143,0.00019167,2]
[336576714,1724953838910,-500.0,0.00019167,2]
[336576715,1724953838920,-500.0,0.00019167,2]
[336576716,1724953838930,-500.0,0.00019167,2]
[336576717,1724953838939,-500.0,0.00019167,2]
[336576718,1724953838949,-500.0,0.00019167,2]
[336576719,1724953838958,-206.24920327,0.00019167,2]
[336576720,1724953838968,-188.824042,0.00019167,2]
[336576721,1724953838977,-73796.3351316,0.00019168,2]
[336576722,1724953838986,-240.64886019,0.00019173,2]
[336576723,1724953838995,-168.09411654,0.00019173,2]
[336576724,1724953839005,-161.49687722,0.00019173,2]
[336576725,1724953839014,-1000.0,0.00019177,2]
[336576726,1724953839023,-1000.0,0.00019177,2]
[336576727,1724953839033,-1000.0,0.00019177,2]
[336576728,1724953839047,-1000.0,0.00019177,2]
[336576729,1724953839056,-1000.0,0.00019177,2]
[336576730,1724953839066,-1000.0,0.00019177,2]
[336576731,1724953839075,-704.0619935,0.00019177,2]
[336576732,1724953839084,-500.0,0.00019178,2]
[336576733,1724953839093,-500.0,0.00019178,2]
[336576734,1724953839103,-226.68280265,0.00019178,2]
[336576735,1724953839113,-507.9280735,0.00019178,2]
[336576736,1724953839122,-502.26947299,0.00019178,2]
[336576737,1724953839131,-501.33421266,0.00019178,2]
[336576738,1724953839142,-500.0,0.00019178,2]
[336576739,1724953839151,-500.0,0.00019178,2]
[336576740,1724953839160,-501.93930048,0.00019178,2]
[336576741,1724953839171,-500.0,0.00019178,2]
[336576742,1724953839180,-500.0,0.00019178,2]
[336576743,1724953839189,-503.14662438,0.00019178,2]
[336576744,1724953839198,-503.32225029,0.00019178,2]
[336576745,1724953839207,-514.78518479,0.00019178,2]
[336576746,1724953839220,-503.13512186,0.00019178,2]
[336576747,1724953839230,-502.71397589,0.00019178,2]
[336576748,1724953839240,-503.86334005,0.00019178,2]
[336576749,1724953839249,-295.8331768,0.00019178,2]
[336576750,1724953839259,-178.21792266,0.00019178,2]
[336576751,1724953839269,-500.0,0.00019178,2]
[336576752,1724953839278,-501.0299058,0.00019178,2]
[336576753,1724953839289,-501.2056711,0.00019178,2]
[336576754,1724953839299,-504.25289437,0.00019178,2]
[336576755,1724953839309,-500.0,0.00019178,2]
[336576756,1724953839319,-500.0,0.00019178,2]
[336576757,1724953839328,-500.0,0.00019178,2]
[336576758,1724953839338,-500.0,0.00019178,2]
[336576759,1724953839347,-500.0,0.00019178,2]
[336576760,1724953839357,-500.0,0.00019178,2]
[336576761,1724953839368,-500.0,0.00019178,2]
[336576762,1724953839380,-500.0,0.00019178,2]
[336576763,1724953839391,-500.0,0.00019178,2]
[336576764,1724953839401,-500.0,0.00019178,2]
[336576765,1724953839410,-457.93345033,0.00019178,2]
[336576766,1724953839419,-500.0,0.00019178,2]
[336576767,1724953839430,-500.0,0.00019178,2]
[336576768,1724953839441,-500.0,0.00019178,2]
[336576769,1724953839452,-500.0,0.00019178,2]
[336576770,1724953839462,-500.0,0.00019178,2]
[336576771,1724953839472,-500.0,0.00019178,2]
[336576772,1724953839481,-500.0,0.00019178,2]
[336576773,1724953839491,-500.0,0.00019178,2]
[336576774,1724953839500,-500.0,0.00019178,2]
[336576775,1724953839509,-500.0,0.00019178,2]
[336576776,1724953839519,-500.0,0.00019178,2]
[336576777,1724953839529,-500.0,0.00019178,2]
[336576778,1724953839538,-500.0,0.00019178,2]
[336576779,1724953839549,-500.0,0.00019178,2]
[336576780,1724953839558,-500.0,0.00019178,2]
[336576781,1724953839567,-500.0,0.00019178,2]
[336576782,1724953839577,-500.0,0.00019178,2]
[336576783,1724953839587,-500.0,0.00019178,2]
[336576784,1724953839597,-500.0,0.00019178,2]
[336576785,1724953839607,-500.0,0.00019178,2]
[336576786,1724953839616,-500.0,0.00019178,2]
[336576787,1724953839625,-521.67563571,0.00019178,2]
[336576788,1724953839635,-500.0,0.00019178,2]
[336576789,1724953839645,-500.0,0.00019178,2]
[336576790,1724953839654,-500.0,0.00019178,2]
[336576791,1724953839663,-500.0,0.00019178,2]
[336576792,1724953839673,-500.0,0.00019178,2]
[336576793,1724953839682,-500.0,0.00019178,2]
[336576794,1724953839691,-500.0,0.00019178,2]
[336576795,1724953839700,-301.79866319,0.00019178,2]
[336576796,1724953839710,-500.0,0.00019178,2]
[336576797,1724953839719,-500.0,0.00019178,2]
[336576798,1724953839728,-626.1991081,0.00019178,2]
[336576799,1724953839738,-500.0,0.00019178,2]
[336576800,1724953839747,-500.0,0.00019178,2]
[336576801,1724953839757,-500.0,0.00019178,2]
[336576802,1724953839767,-500.0,0.00019178,2]
[336576803,1724953839777,-500.0,0.00019178,2]
[336576804,1724953839786,-500.0,0.00019178,2]
[336576805,1724953839795,-500.0,0.00019178,2]
[336576806,1724953839805,-500.0,0.00019178,2]
[336576807,1724953839815,-500.0,0.00019178,2]
[336576808,1724953839824,-500.0,0.00019178,2]
[336576809,1724953839834,-500.0,0.00019178,2]
[336576810,1724953839843,-500.0,0.00019178,2]
[336576812,1724953839853,-500.0,0.00019178,2]
[336576813,1724953839862,-500.0,0.00019178,2]
[336576814,1724953839873,-500.0,0.00019178,2]
[336576815,1724953839882,-500.0,0.00019178,2]
[336576816,1724953839892,-500.0,0.00019178,2]
[336576818,1724953839901,-500.0,0.00019178,2]
[336576820,1724953839910,-500.0,0.00019178,2]
[336576822,1724953839919,-500.0,0.00019178,2]
[336576823,1724953839929,-500.0,0.00019178,2]
[336576824,1724953839938,-500.0,0.00019178,2]
[336576825,1724953839948,-540.07346282,0.00019178,2]
[336576826,1724953839958,-500.0,0.00019178,2]
[336576827,1724953839968,-500.0,0.00019178,2]
[336576828,1724953839977,-500.0,0.00019178,2]
[336576829,1724953839987,-500.0,0.00019178,2]
[336576830,1724953839996,-500.0,0.00019178,2]
[336576831,1724953840005,-500.0,0.00019178,2]
[336576832,1724953840014,-500.0,0.00019178,2]
[336576833,1724953840024,-500.0,0.00019178,2]
[336576834,1724953840033,-500.0,0.00019178,2]
[336576835,1724953840043,-500.0,0.00019178,2]
[336576836,1724953840053,-500.0,0.00019178,2]
[336576837,1724953840062,-501.58444711,0.00019178,2]
[336576838,1724953840072,-503.04304108,0.00019178,2]
[336576839,1724953840081,-500.0,0.00019178,2]
[336576840,1724953840091,-508.33193095,0.00019178,2]
[336576841,1724953840101,-501.22880114,0.00019178,2]
[336576842,1724953840110,-500.0,0.00019178,2]
[336576843,1724953840120,-500.0,0.00019178,2]
[336576844,1724953840129,-500.0,0.00019178,2]
[336576845,1724953840139,-500.71122413,0.00019178,2]
[336576846,1724953840148,-500.0,0.00019178,2]
[336576847,1724953840157,-373.86092596,0.00019178,2]
[336576848,1724953840167,-500.0,0.00019178,2]
[336576849,1724953840177,-500.0,0.00019178,2]
[336576850,1724953840186,-500.0,0.00019178,2]
[336576851,1724953840195,-500.0,0.00019178,2]
[336576852,1724953840204,-500.0,0.00019178,2]
[336576853,1724953840217,-500.0,0.00019178,2]
[336576854,1724953840226,-500.0,0.00019178,2]
[336576855,1724953840236,-893.81,0.00019178,2]
[336576856,1724953840245,-500.0,0.00019178,2]
[336576857,1724953840255,-500.0,0.00019178,2]
[336576858,1724953840264,-500.0,0.00019178,2]
[336576859,1724953840274,-500.8191015,0.00019178,2]
[336576860,1724953840283,-500.0,0.00019178,2]
[336576861,1724953840293,-500.0,0.00019178,2]
[336576862,1724953840303,-619.30048592,0.00019178,2]
[336576863,1724953840313,-500.0,0.00019178,2]
[336576864,1724953840323,-500.0,0.00019178,2]
[336576865,1724953840333,-500.0,0.00019178,2]
[336576866,1724953840343,-500.0,0.00019178,2]
[336576867,1724953840353,-500.0,0.00019178,2]
[336576868,1724953840363,-500.0,0.00019178,2]
[336576869,1724953840373,-500.0,0.00019178,2]
[336576870,1724953840382,-500.0,0.00019178,2]
[336576871,1724953840392,-602.90000302,0.00019178,2]
[336576872,1724953840402,-500.0,0.00019178,2]
[336576873,1724953840411,-500.0,0.00019178,2]
[336576874,1724953840420,-500.0,0.00019178,2]
[336576875,1724953840430,-500.0,0.00019178,2]
[336576876,1724953840440,-500.0,0.00019178,2]
[336576877,1724953840450,-500.0,0.00019178,2]
[336576878,1724953840459,-500.0,0.00019178,2]
[336576879,1724953840469,-500.0,0.00019178,2]
[336576880,1724953840478,-618.21217825,0.00019178,2]
[336576881,1724953840488,-500.0,0.00019178,2]
[336576882,1724953840497,-500.0,0.00019178,2]
[336576883,1724953840506,-501.13742906,0.00019178,2]
[336576884,1724953840516,-500.0,0.00019178,2]
[336576885,1724953840525,-500.0,0.00019178,2]
[336576886,1724953840535,-500.0,0.00019178,2]
[336576887,1724953840546,-279.81274942,0.00019178,2]
[336576888,1724953840555,-500.0,0.00019178,2]
[336576889,1724953840565,-500.0,0.00019178,2]
[336576890,1724953840575,-507.34958046,0.00019178,2]
[336576891,1724953840584,-500.0,0.00019178,2]
[336576892,1724953840594,-500.66822901,0.00019178,2]
[336576893,1724953840603,-500.0,0.00019178,2]
[336576894,1724953840612,-500.0,0.00019178,2]
[336576895,1724953840621,-500.0,0.00019178,2]
[336576896,1724953840631,-500.0,0.00019178,2]
[336576897,1724953840641,-500.0,0.00019178,2]
[336576898,1724953840650,-500.0,0.00019178,2]
[336576899,1724953840659,-500.0,0.00019178,2]
[336576900,1724953840668,-500.0,0.00019178,2]
[336576901,1724953840677,-500.0,0.00019178,2]
[336576902,1724953840686,-500.0,0.00019178,2]
[336576903,1724953840695,-500.0,0.00019178,2]
[336576904,1724953840705,-500.0,0.00019178,2]
[336576905,1724953840714,-500.0,0.00019178,2]
[336576906,1724953840724,-500.0,0.00019178,2]
[336576907,1724953840733,-500.0,0.00019178,2]
[336576908,1724953840742,-500.0,0.00019178,2]
[336576909,1724953840752,-500.0,0.00019178,2]
[336576910,1724953840761,-500.0,0.00019178,2]
[336576911,1724953840770,-500.0,0.00019178,2]
[336576912,1724953840780,-500.0,0.00019178,2]
[336576913,1724953840790,-645.75569571,0.00019178,2]
[336576914,1724953840800,-500.0,0.00019178,2]
[336576915,1724953840809,-500.0,0.00019178,2]
[336576916,1724953840818,-500.0,0.00019178,2]
[336576917,1724953840827,-500.0,0.00019178,2]
[336576918,1724953840837,-500.0,0.00019178,2]
[336576919,1724953840846,-500.0,0.00019178,2]
[336576920,1724953840855,-500.0,0.00019178,2]
[336576921,1724953840864,-500.0,0.00019178,2]
[336576922,1724953840873,-500.0,0.00019178,2]
[336576923,1724953840883,-500.0,0.00019178,2]
[336576924,1724953840892,-507.48470901,0.00019178,2]
[336576925,1724953840903,-500.0,0.00019178,2]
[336576926,1724953840914,-500.0,0.00019178,2]
[336576927,1724953840926,-500.0,0.00019178,2]
[336576928,1724953840939,-491.75509989,0.00019178,2]
[336576929,1724953840948,-500.0,0.00019178,2]
[336576930,1724953840958,-500.0,0.00019178,2]
[336576931,1724953840967,-500.0,0.00019178,2]
[336576932,1724953840977,-500.0,0.00019178,2]
[336576933,1724953840987,-500.0,0.00019178,2]
[336576934,1724953840996,-500.0,0.00019178,2]
[336576935,1724953841005,-500.0,0.00019178,2]
[336576936,1724953841015,-500.0,0.00019178,2]
[336576937,1724953841024,-500.0,0.00019178,2]
[336576938,1724953841033,-500.0,0.00019178,2]
[336576939,1724953841043,-500.0,0.00019178,2]
[336576940,1724953841052,-500.41945364,0.00019178,2]
[336576941,1724953841061,-500.0,0.00019178,2]
[336576942,1724953841071,-500.0,0.00019178,2]
[336576943,1724953841081,-500.0,0.00019178,2]
[336576944,1724953841090,-500.0,0.00019178,2]
[336576945,1724953841099,-500.0,0.00019178,2]
[336576947,1724953841109,-500.0,0.00019178,2]
[336576949,1724953841118,-500.40715464,0.00019178,2]
[336576950,1724953841128,-502.12198801,0.00019178,2]
[336576952,1724953841137,-500.0,0.00019178,2]
[336576954,1724953841146,-500.0,0.00019178,2]
[336576956,1724953841155,-500.0,0.00019178,2]
[336576957,1724953841164,-500.0,0.00019178,2]
[336576958,1724953841173,-500.0,0.00019178,2]
[336576960,1724953841183,-500.0,0.00019178,2]
[336576962,1724953841192,-500.0,0.00019178,2]
[336576963,1724953841201,-500.0,0.00019178,2]
[336576964,1724953841211,-500.0,0.00019178,2]
[336576965,1724953841223,-500.0,0.00019178,2]
[336576966,1724953841232,-500.0,0.00019178,2]
[336576967,1724953841242,-500.0,0.00019178,2]
[336576968,1724953841348,-500.0,0.00019178,2]
[336576969,1724953841371,-500.0,0.00019178,2]
[336576970,1724953841380,-500.0,0.00019178,2]
[336576971,1724953841390,-500.0,0.00019178,2]
[336576972,1724953841400,-576.61,0.00019178,2]
[336576973,1724953841409,-500.0,0.00019178,2]
[336576974,1724953841419,-500.0,0.00019178,2]
[336576975,1724953841429,-515.5404769,0.00019178,2]
[336576976,1724953841438,-500.0,0.00019178,2]
[336576977,1724953841448,-500.0,0.00019178,2]
[336576978,1724953841458,-500.0,0.00019178,2]
[336576979,1724953841468,-500.0,0.00019178,2]
[336576980,1724953841478,-500.0,0.00019178,2]
[336576981,1724953841489,-500.0,0.00019178,2]
[336576982,1724953841498,-500.0,0.00019178,2]
[336576983,1724953841507,-500.0,0.00019178,2]
[336576984,1724953841517,-500.0,0.00019178,2]
[336576985,1724953841526,-500.0,0.00019178,2]
[336576986,1724953841536,-500.0,0.00019178,2]
[336576987,1724953841546,-500.0,0.00019178,2]
[336576988,1724953841556,-500.0,0.00019178,2]
[336576989,1724953841565,-500.0,0.00019178,2]
[336576990,1724953841575,-500.0,0.00019178,2]
[336576991,1724953841583,-500.0,0.00019178,2]
[336576992,1724953841597,-500.0,0.00019178,2]
[336576993,1724953841608,-500.0,0.00019178,2]
[336576994,1724953841621,-500.0,0.00019178,2]
[336576995,1724953841630,-500.0,0.00019178,2]
[336576996,1724953841640,-500.0,0.00019178,2]
[336576997,1724953841649,-500.0,0.00019178,2]
[336576998,1724953841659,-500.0,0.00019178,2]
[336576999,1724953841668,-500.0,0.00019178,2]
[336577000,1724953841678,-500.0,0.00019178,2]
[336577001,1724953841688,-500.0,0.00019178,2]
[336577002,1724953841698,-500.0,0.00019178,2]
[336577003,1724953841707,-500.0,0.00019178,2]
[336577004,1724953841718,-500.0,0.00019178,2]
[336577005,1724953841730,-234.25299896,0.00019178,2]
[336577006,1724953841742,-500.0,0.00019178,2]
[336577007,1724953841753,-318.94533941,0.00019178,2]
[336577008,1724953841764,-500.0,0.00019178,2]
[336577009,1724953841775,-500.0,0.00019178,2]
[336577010,1724953841785,-500.0,0.00019178,2]
[336577011,1724953841795,-500.0,0.00019178,2]
[336577012,1724953841804,-500.0,0.00019178,2]
[336577013,1724953841813,-502.61032171,0.00019178,2]
[336577014,1724953841823,-500.0,0.00019178,2]
[336577015,1724953841833,-500.0,0.00019178,2]
[336577016,1724953841843,-620.44085915,0.00019178,2]
[336577017,1724953841853,-500.0,0.00019178,2]
[336577018,1724953841862,-500.0,0.00019178,2]
[336577019,1724953841871,-500.0,0.00019178,2]
[336577020,1724953841882,-500.0,0.00019178,2]
[336577021,1724953841892,-500.0,0.00019178,2]
[336577022,1724953841901,-500.0,0.00019178,2]
[336577023,1724953841911,-500.0,0.00019178,2]
[336577024,1724953841922,-500.0,0.00019178,2]
[336577025,1724953841932,-500.0,0.00019178,2]
[336577026,1724953841942,-500.0,0.00019178,2]
[336577027,1724953841951,-500.0,0.00019178,2]
[336577028,1724953841961,-500.0,0.00019178,2]
[336577029,1724953841970,-500.0,0.00019178,2]
[336577030,1724953841980,-500.0,0.00019178,2]
[336577031,1724953841990,-500.0,0.00019178,2]
[336577032,1724953842001,-500.0,0.00019178,2]
[336577033,1724953842012,-1032.68,0.00019178,2]
[336577034,1724953842022,-500.0,0.00019178,2]
[336577035,1724953842033,-500.0,0.00019178,2]
[336577036,1724953842043,-500.0,0.00019178,2]
[336577037,1724953842054,-500.0,0.00019178,2]
[336577038,1724953842064,-500.0,0.00019178,2]
[336577039,1724953842074,-500.0,0.00019178,2]
[336577040,1724953842084,-500.0,0.00019178,2]
[336577041,1724953842096,-500.0,0.00019178,2]
[336577042,1724953842106,-590.65957572,0.00019178,2]
[336577043,1724953842118,-500.0,0.00019178,2]
[336577044,1724953842128,-500.0,0.00019178,2]
[336577045,1724953842137,-500.0,0.00019178,2]
[336577046,1724953842147,-500.0,0.00019178,2]
[336577047,1724953842156,-500.0,0.00019178,2]
[336577048,1724953842166,-500.0,0.00019178,2]
[336577049,1724953842175,-500.0,0.00019178,2]
[336577050,1724953842184,-1081.6,0.00019178,2]
[336577051,1724953842193,-500.0,0.00019178,2]
[336577052,1724953842203,-500.0,0.00019178,2]
[336577053,1724953842216,-489.15234295,0.00019178,2]
[336577054,1724953842225,-500.0,0.00019178,2]
[336577055,1724953842235,-657.8,0.00019178,2]
[336577056,1724953842244,-500.0,0.00019178,2]
[336577057,1724953842255,-500.0,0.00019178,2]
[336577058,1724953842264,-885.79,0.00019178,2]
[336577059,1724953842274,-500.0,0.00019178,2]
[336577060,1724953842283,-500.0,0.00019178,2]
[336577061,1724953842295,-501.33338861,0.00019178,2]
[336577062,1724953842313,-500.0,0.00019178,2]
[336577063,1724953842323,-342.10393292,0.00019178,2]